fUST/lending_fUST_20241217
["ID","MTS","AMOUNT","RATE_DAILY","PERIOD"]
[345729511,1734437439897,-2319.44,0.00025479,5]
[345729514,1734437439907,-576.44,0.00025479,6]
[345729517,1734437439918,-500.0,0.00025479,6]
[345729520,1734437439927,-500.0,0.00025479,6]
[345729523,1734437439944,-6291.55,0.00025479,6]
[345729527,1734437439953,-500.0,0.00025479,6]
[345729530,1734437439963,-1092.12,0.00025479,6]
[345729532,1734437439972,-614.71,0.00025479,6]
[345729535,1734437439981,-500.0,0.00025479,6]
[345729538,1734437439990,-500.0,0.00025479,6]
[345729541,1734437439999,-500.0,0.00025479,6]
[345729544,1734437440009,-500.0,0.00025479,6]
[345729547,1734437440018,-500.0,0.00025479,6]
[345729550,1734437440027,-500.0,0.00025479,6]
[345729552,1734437440036,-500.0,0.00025479,6]
[345729554,1734437440045,-500.0,0.00025479,6]
[345729556,1734437440054,-500.0,0.00025479,6]
[345729558,1734437440064,-456.41275805,0.00025479,6]
[345729560,1734437440073,-500.0,0.00025479,2]
[345729562,1734437440082,-221.28210785,0.00025479,6]
[345729564,1734437440093,-1184.66,0.00025479,6]
[345729566,1734437440103,-450.9692293,0.00025497,2]
[345729568,1734437440112,-666.0,0.00025653,2]
[345729570,1734437440121,-1000.0,0.00025738,2]
[345729572,1734437440131,-1000.0,0.00025738,2]
[345729574,1734437440140,-212.090437,0.00025753,2]
[345729576,1734437440150,-500.0,0.00025753,6]
[345729578,1734437440159,-313.06142073,0.00025753,6]
[345729580,1734437440169,-500.0,0.00025753,6]
[345729582,1734437440179,-500.0,0.00025753,6]
[345729584,1734437440195,-500.0,0.00025753,6]
[345729586,1734437440204,-500.0,0.00025753,6]
[345729588,1734437440213,-500.0,0.00025753,6]
[345729590,1734437440223,-1480.88,0.00025753,2]
[345729592,1734437440232,-369.97652643,0.00025753,6]
[345729594,1734437440241,-500.0,0.00025753,6]
[345729596,1734437440251,-500.0,0.00025753,6]
[345729598,1734437440261,-500.0,0.00025753,6]
[345729600,1734437440271,-500.0,0.00025753,6]
[345729603,1734437440280,-500.0,0.00025753,6]
[345729605,1734437440290,-500.0,0.00025753,6]
[345729607,1734437440299,-500.0,0.00025753,6]
[345729608,1734437440309,-500.0,0.00025753,6]
[345729611,1734437440319,-500.0,0.00025753,6]
[345729612,1734437440328,-500.0,0.00025753,6]
[345729614,1734437440337,-1487.13,0.00025753,6]
[345729617,1734437440347,-1844.47,0.00025753,6]
[345729618,1734437440356,-500.0,0.00025753,6]
[345729621,1734437440366,-2137.34,0.00025753,6]
[345729623,1734437440375,-500.0,0.00025753,6]
[345729624,1734437440384,-500.0,0.00025753,6]
[345729626,1734437440394,-3107.91,0.00025753,6]
[345729628,1734437440404,-500.0,0.00025753,6]
[345729630,1734437440413,-500.0,0.00025753,6]
[345729632,1734437440423,-500.0,0.00025753,6]
[345729634,1734437440432,-500.0,0.00025753,6]
[345729637,1734437440461,-500.0,0.00025753,6]
[345729639,1734437440470,-500.0,0.00025753,6]
[345729641,1734437440480,-500.0,0.00025753,6]
[345729643,1734437440489,-540.12,0.00025753,6]
[345729645,1734437440499,-500.0,0.00025753,6]
[345729647,1734437440508,-2319.44,0.00025753,5]
[345729649,1734437440518,-576.44,0.00025753,6]
[345729651,1734437440527,-500.0,0.00025753,6]
[345729653,1734437440536,-500.0,0.00025753,6]
[345729655,1734437440546,-6291.55,0.00025753,6]
[345729656,1734437440555,-500.0,0.00025753,6]
[345729658,1734437440564,-1092.12,0.00025753,6]
[345729660,1734437440573,-614.71,0.00025753,6]
[345729662,1734437440583,-500.0,0.00025753,6]
[345729664,1734437440593,-500.0,0.00025753,6]
[345729666,1734437440602,-500.0,0.00025753,6]
[345729668,1734437440612,-500.0,0.00025753,6]
[345729670,1734437440625,-500.0,0.00025753,6]
[345729672,1734437440634,-500.0,0.00025753,6]
[345729674,1734437440644,-500.0,0.00025753,6]
[345729676,1734437440654,-500.0,0.00025753,6]
[345729678,1734437440665,-500.0,0.00025753,6]
[345729680,1734437440674,-500.0,0.00025753,2]
[345729682,1734437440683,-1184.66,0.00025753,6]
[345729684,1734437440693,-400.0,0.00025753,2]
[345729686,1734437440703,-186.0,0.0002589,2]
[345729688,1734437440713,-300.0,0.000259,12]
[345729690,1734437440722,-517.67491832,0.00025935,2]
[345729692,1734437440731,-450.9692293,0.00025967,2]
[345729694,1734437440740,-500.0,0.00026027,6]
[345729696,1734437440750,-500.0,0.00026027,6]
[345729698,1734437440759,-500.0,0.00026027,6]
[345729700,1734437440768,-500.0,0.00026027,6]
[345729702,1734437440778,-500.0,0.00026027,6]
[345729704,1734437440788,-500.0,0.00026027,6]
[345729707,1734437440797,-1480.88,0.00026027,2]
[345729708,1734437440806,-500.0,0.00026027,6]
[345729710,1734437440816,-500.0,0.00026027,6]
[345729713,1734437440826,-543.27564018,0.00026027,6]
[345729715,1734437440836,-500.0,0.00026027,6]
[345729717,1734437440845,-500.0,0.00026027,6]
[345729718,1734437440856,-263.16307585,0.00026027,6]
[345729721,1734437440866,-500.0,0.00026027,6]
[345729723,1734437440875,-500.0,0.00026027,6]
[345729725,1734437440884,-500.0,0.00026027,6]
[345729727,1734437440893,-500.0,0.00026027,6]
[345729729,1734437440903,-1487.13,0.00026027,6]
[345729731,1734437440912,-1844.47,0.00026027,6]
[345729733,1734437440922,-500.0,0.00026027,6]
[345729735,1734437440931,-2137.34,0.00026027,6]
[345729737,1734437440947,-500.0,0.00026027,6]
[345729739,1734437440958,-500.0,0.00026027,6]
[345729741,1734437440971,-3107.91,0.00026027,6]
[345729743,1734437440980,-500.0,0.00026027,6]
[345729745,1734437440991,-500.0,0.00026027,6]
[345729747,1734437441000,-500.0,0.00026027,6]
[345729749,1734437441010,-500.0,0.00026027,6]
[345729751,1734437441019,-500.0,0.00026027,6]
[345729753,1734437441028,-500.0,0.00026027,6]
[345729755,1734437441037,-500.0,0.00026027,6]
[345729757,1734437441047,-540.12,0.00026027,6]
[345729759,1734437441057,-500.0,0.00026027,6]
[345729761,1734437441066,-2319.44,0.00026027,5]
[345729763,1734437441075,-576.44,0.00026027,6]
[345729765,1734437441084,-500.0,0.00026027,6]
[345729767,1734437441094,-500.0,0.00026027,6]
[345729769,1734437441103,-6291.55,0.00026027,6]
[345729771,1734437441112,-500.0,0.00026027,6]
[345729773,1734437441122,-1092.12,0.00026027,6]
[345729775,1734437441131,-614.71,0.00026027,6]
[345729777,1734437441141,-500.0,0.00026027,6]
[345729779,1734437441151,-500.0,0.00026027,6]
[345729781,1734437441160,-500.0,0.00026027,6]
[345729783,1734437441170,-500.0,0.00026027,6]
[345729785,1734437441178,-500.0,0.00026027,6]
[345729787,1734437441193,-500.0,0.00026027,6]
[345729789,1734437441205,-500.0,0.00026027,6]
[345729791,1734437441215,-500.0,0.00026027,6]
[345729793,1734437441224,-500.0,0.00026027,6]
[345729795,1734437441234,-500.0,0.00026027,2]
[345729797,1734437441243,-1184.66,0.00026027,6]
[345729799,1734437441252,-212.090437,0.00026076,2]
[345729800,1734437441262,-11056.37204061,0.000263,2]
[345729802,1734437441271,-500.0,0.00026301,6]
[345729804,1734437441281,-500.0,0.00026301,6]
[345729806,1734437441290,-500.0,0.00026301,6]
[345729808,1734437441299,-500.0,0.00026301,6]
[345729810,1734437441308,-500.0,0.00026301,6]
[345729812,1734437441317,-333.95063838,0.00026301,6]
[345729814,1734437441326,-1480.88,0.00026301,2]
[345729816,1734437441335,-500.0,0.00026301,6]
[345729818,1734437441344,-500.0,0.00026301,6]
[345729820,1734437441353,-500.0,0.00026301,6]
[345729822,1734437441362,-500.0,0.00026301,6]
[345729824,1734437441371,-500.0,0.00026301,6]
[345729826,1734437441381,-500.0,0.00026301,6]
[345729828,1734437441390,-500.0,0.00026301,6]
[345729830,1734437441399,-500.0,0.00026301,6]
[345729832,1734437441410,-1487.13,0.00026301,6]
[345729834,1734437441419,-1844.47,0.00026301,6]
[345729836,1734437441429,-500.0,0.00026301,6]
[345729838,1734437441444,-2137.34,0.00026301,6]
[345729840,1734437441453,-500.0,0.00026301,6]
[345729842,1734437441462,-500.0,0.00026301,6]
[345729844,1734437441471,-3107.91,0.00026301,6]
[345729846,1734437441480,-500.0,0.00026301,6]
[345729848,1734437441489,-500.0,0.00026301,6]
[345729850,1734437441498,-500.0,0.00026301,6]
[345729852,1734437441507,-500.0,0.00026301,6]
[345729854,1734437441516,-500.0,0.00026301,6]
[345729856,1734437441525,-500.0,0.00026301,6]
[345729858,1734437441534,-500.0,0.00026301,6]
[345729860,1734437441543,-540.12,0.00026301,6]
[345729862,1734437441553,-500.0,0.00026301,6]
[345729864,1734437441562,-2319.44,0.00026301,5]
[345729866,1734437441571,-576.44,0.00026301,6]
[345729868,1734437441580,-500.0,0.00026301,6]
[345729870,1734437441590,-500.0,0.00026301,6]
[345729872,1734437441599,-6291.55,0.00026301,6]
[345729874,1734437441611,-500.0,0.00026301,6]
[345729876,1734437441621,-1092.12,0.00026301,6]
[345729878,1734437441630,-614.71,0.00026301,6]
[345729880,1734437441639,-500.0,0.00026301,6]
[345729882,1734437441648,-500.0,0.00026301,6]
[345729884,1734437441657,-500.0,0.00026301,6]
[345729886,1734437441667,-500.0,0.00026301,6]
[345729888,1734437441676,-500.0,0.00026301,6]
[345729890,1734437441685,-500.0,0.00026301,6]
[345729891,1734437441701,-500.0,0.00026301,6]
[345729893,1734437441711,-500.0,0.00026301,6]
[345729894,1734437441720,-500.0,0.00026301,6]
[345729895,1734437441729,-500.0,0.00026301,2]
[345729896,1734437441738,-1184.66,0.00026301,6]
[345729897,1734437441747,-166.0,0.0002635,3]
[345729898,1734437441756,-151.0,0.00026367,6]
[345729900,1734437441766,-660.0,0.00026384,2]
[345729902,1734437441775,-155.0,0.00026396,3]
[345729904,1734437441784,-155.0,0.00026396,3]
[345729906,1734437441795,-155.0,0.00026396,3]
[345729908,1734437441805,-155.0,0.00026396,3]
[345729910,1734437441814,-155.0,0.00026396,3]
[345729912,1734437441823,-225.0,0.00026396,3]
[345729914,1734437441832,-34168.27401593,0.000264,15]
[345729917,1734437441850,-3213.08573571,0.000264,15]
[345729922,1734437441884,-685.8686,0.000264,15]
[345729925,1734437441906,-2059.24188361,0.000264,15]
[345730084,1734437443328,-1053.39,0.00024657,6]
[345730086,1734437443339,-1053.39,0.00024931,6]
[345730088,1734437443349,-1053.39,0.00025205,6]
[345730090,1734437443359,-18448.39013635,0.000264,15]
[345730092,1734437443368,-212.090437,0.000264,2]
[345730094,1734437443378,-2427.97573008,0.000264,2]
[345730096,1734437443387,-450.9692293,0.00026437,2]
[345730098,1734437443397,-500.0,0.00026473,2]
[345730100,1734437443408,-510.7629645,0.00026473,2]
[345730102,1734437443418,-563.36654018,0.00026473,2]
[345730104,1734437443428,-503.30174539,0.00026473,2]
[345730106,1734437443437,-500.0,0.00026473,2]
[345730109,1734437443460,-158.28073258,0.00026499,2]
[345730111,1734437443470,-6502.44243985,0.000265,2]
[345730115,1734437443485,-1053.39,0.00025479,6]
[345730117,1734437443495,-31401.75493502,0.000265,2]
[345730118,1734437443503,-2534.60856646,0.000265,2]
[345730120,1734437443513,-1517868.76608056,0.000265,5]
[345730122,1734437443524,-175620.21013471,0.000265,5]
[345730124,1734437443534,-364.11394091,0.000265,5]
[345730266,1734437446187,-1053.39,0.00025753,6]
[345730268,1734437446206,-1053.39,0.00026027,6]
[345730270,1734437446216,-1053.39,0.00026301,6]
[345730272,1734437446226,-7921.1595809,0.000265,5]
[345730275,1734437446238,-533.65,0.000265,5]
[345731671,1734437871785,165.766561,0.00013973,2]
[345731681,1734438184301,3026.0,0.0002023,2]
[345731688,1734438404310,3000.0,0.00025569,120]
[345731782,1734438632411,-5000.0,0.00020938,2]
[345731783,1734438632421,-2869.46819678,0.00021149,2]
[345731786,1734438632468,-2130.53180322,0.00021149,2]
[345731787,1734438632478,-3158.8394003,0.00023196,2]
[345731788,1734438632488,-300.0,0.00023206,2]
[345731789,1734438632497,-300.0,0.00023207,2]
[345731790,1734438632507,-180.902,0.00024655,7]
[345731791,1734438632516,-500.0,0.00024657,6]
[345731792,1734438632525,-500.0,0.00024657,6]
[345731793,1734438632535,-1048.96,0.00024657,2]
[345731794,1734438632544,-500.0,0.00024657,6]
[345731795,1734438632553,-500.0,0.00024657,6]
[345731796,1734438632563,-500.0,0.00024657,6]
[345731797,1734438632572,-500.0,0.00024657,6]
[345731798,1734438632582,-500.0,0.00024657,6]
[345731799,1734438632591,-500.0,0.00024657,6]
[345731800,1734438632604,-500.0,0.00024657,6]
[345731801,1734438632614,-500.0,0.00024657,6]
[345731802,1734438632623,-500.0,0.00024657,2]
[345731803,1734438632633,-500.0,0.00024657,6]
[345731804,1734438632642,-1306.5,0.00024657,6]
[345731805,1734438632652,-1513.95,0.00024657,6]
[345731806,1734438632662,-563.62614128,0.00024657,6]
[345731807,1734438632672,-2201.44,0.00024657,6]
[345731808,1734438632682,-7047.16,0.00024657,6]
[345731809,1734438632851,-500.0,0.00024657,6]
[345731810,1734438632860,-500.0,0.00024657,6]
[345731811,1734438632870,-500.0,0.00024657,6]
[345731812,1734438632879,-446.96039852,0.00024657,6]
[345731813,1734438632888,-500.0,0.00024657,6]
[345731814,1734438632897,-1642.94,0.00024657,5]
[345731815,1734438632906,-500.0,0.00024657,6]
[345731816,1734438632916,-500.0,0.00024657,6]
[345731817,1734438632924,-500.0,0.00024657,6]
[345731818,1734438632934,-500.0,0.00024657,6]
[345731819,1734438632943,-500.0,0.00024657,6]
[345731820,1734438632952,-500.0,0.00024657,6]
[345731821,1734438632961,-500.0,0.00024657,6]
[345731822,1734438632970,-500.0,0.00024657,6]
[345731823,1734438632980,-500.0,0.00024657,6]
[345731824,1734438632991,-500.0,0.00024657,6]
[345731825,1734438633004,-500.0,0.00024657,6]
[345731826,1734438633014,-773.59,0.00024657,6]
[345731827,1734438633023,-500.0,0.00024657,6]
[345731828,1734438633033,-500.0,0.00024657,6]
[345731829,1734438633044,-500.0,0.00024657,6]
[345731830,1734438633054,-500.0,0.00024657,6]
[345731831,1734438633064,-500.0,0.00024657,2]
[345731832,1734438633076,-839.13,0.00024657,6]
[345731833,1734438633087,-500.0,0.00024657,6]
[345731834,1734438633097,-500.0,0.00024657,6]
[345731835,1734438633109,-3735.21,0.00024657,2]
[345731836,1734438633119,-500.0,0.00024657,6]
[345731837,1734438633129,-500.0,0.00024657,6]
[345731838,1734438633138,-404.51118902,0.00024657,6]
[345731839,1734438633148,-500.0,0.00024657,6]
[345731840,1734438633157,-567.47955906,0.00024657,6]
[345731841,1734438633167,-746.15,0.00024657,6]
[345731842,1734438633177,-500.0,0.00024931,6]
[345731843,1734438633187,-500.0,0.00024931,6]
[345731844,1734438633196,-1048.96,0.00024931,2]
[345731845,1734438633206,-500.0,0.00024931,6]
[345731846,1734438633216,-500.0,0.00024931,6]
[345731847,1734438633225,-500.0,0.00024931,6]
[345731848,1734438633234,-500.0,0.00024931,6]
[345731849,1734438633245,-500.0,0.00024931,6]
[345731850,1734438633255,-500.0,0.00024931,6]
[345731851,1734438633264,-500.0,0.00024931,6]
[345731852,1734438633274,-500.0,0.00024931,6]
[345731853,1734438633284,-500.0,0.00024931,6]
[345731854,1734438633294,-1306.5,0.00024931,6]
[345731855,1734438633304,-1513.95,0.00024931,6]
[345731856,1734438633313,-2201.44,0.00024931,6]
[345731857,1734438633323,-7047.16,0.00024931,6]
[345731858,1734438633332,-500.0,0.00024931,6]
[345731859,1734438633342,-500.0,0.00024931,6]
[345731860,1734438633356,-500.0,0.00024931,6]
[345731861,1734438633366,-500.0,0.00024931,6]
[345731862,1734438633376,-1642.94,0.00024931,5]
[345731863,1734438633386,-500.0,0.00024931,6]
[345731864,1734438633395,-500.0,0.00024931,6]
[345731865,1734438633405,-500.0,0.00024931,6]
[345731866,1734438633415,-500.0,0.00024931,6]
[345731867,1734438633426,-500.0,0.00024931,6]
[345731868,1734438633436,-64715.0445514,0.00024931,2]
[345731869,1734438633445,-500.0,0.00024931,6]
[345731870,1734438633455,-500.0,0.00024931,6]
[345731871,1734438633465,-500.0,0.00024931,6]
[345731872,1734438633475,-500.0,0.00024931,6]
[345731873,1734438633486,-500.0,0.00024931,6]
[345731874,1734438633496,-500.0,0.00024931,6]
[345731875,1734438633506,-773.59,0.00024931,6]
[345731876,1734438633516,-500.0,0.00024931,6]
[345731877,1734438633527,-500.0,0.00024931,6]
[345731878,1734438633537,-500.0,0.00024931,6]
[345731879,1734438633547,-500.0,0.00024931,6]
[345731880,1734438633557,-500.0,0.00024931,2]
[345731881,1734438633568,-839.13,0.00024931,6]
[345731882,1734438633578,-500.0,0.00024931,6]
[345731883,1734438633588,-500.0,0.00024931,6]
[345731884,1734438633597,-3735.21,0.00024931,2]
[345731885,1734438633609,-500.0,0.00024931,6]
[345731886,1734438633620,-500.0,0.00024931,6]
[345731887,1734438633629,-500.0,0.00024931,6]
[345731888,1734438633639,-156.0,0.00024932,2]
[345731889,1734438633649,-156.0,0.00025,2]
[345731890,1734438633659,-43598.95486015,0.00025,7]
[345731891,1734438633669,-505.9745597,0.00025,2]
[345731892,1734438633679,-1046.72368466,0.00025,2]
[345731893,1734438633689,-29962.56537815,0.00025,2]
[345731894,1734438633698,-1850.55324523,0.00025,2]
[345731895,1734438633708,-575.663,0.0002517,2]
[345731896,1734438633718,-420.0,0.00025186,2]
[345731897,1734438633727,-173.05722476,0.00025188,2]
[345731898,1734438633737,-500.61052983,0.00025188,2]
[345731899,1734438633747,-500.69964911,0.00025188,2]
[345731900,1734438633756,-500.66116952,0.00025188,2]
[345731901,1734438633766,-262.7,0.00025205,6]
[345731902,1734438633776,-500.0,0.00025205,6]
[345731903,1734438633785,-1048.96,0.00025205,2]
[345731904,1734438633795,-500.0,0.00025205,6]
[345731905,1734438633804,-500.0,0.00025205,6]
[345731906,1734438633814,-500.0,0.00025205,6]
[345731907,1734438633823,-500.0,0.00025205,6]
[345731908,1734438633833,-500.0,0.00025205,6]
[345731909,1734438633842,-500.0,0.00025205,6]
[345731910,1734438633853,-500.0,0.00025205,6]
[345731911,1734438633863,-500.0,0.00025205,6]
[345731912,1734438633873,-500.0,0.00025205,6]
[345731913,1734438633883,-1306.5,0.00025205,6]
[345731914,1734438633893,-1513.95,0.00025205,6]
[345731915,1734438633903,-2201.44,0.00025205,6]
[345731916,1734438633912,-7047.16,0.00025205,6]
[345731917,1734438633922,-500.0,0.00025205,6]
[345731918,1734438633932,-500.0,0.00025205,6]
[345731919,1734438633942,-500.0,0.00025205,6]
[345731920,1734438633951,-500.0,0.00025205,6]
[345731921,1734438633961,-1642.94,0.00025205,5]
[345731922,1734438633971,-500.0,0.00025205,6]
[345731923,1734438633980,-500.0,0.00025205,6]
[345731924,1734438633994,-568.6358475,0.00025205,6]
[345731925,1734438634005,-500.0,0.00025205,6]
[345731926,1734438634015,-500.0,0.00025205,6]
[345731927,1734438634025,-500.0,0.00025205,6]
[345731928,1734438634035,-500.0,0.00025205,6]
[345731929,1734438634045,-570.84132874,0.00025205,6]
[345731930,1734438634054,-500.0,0.00025205,6]
[345731931,1734438634064,-500.0,0.00025205,6]
[345731932,1734438634075,-364.21010904,0.00025205,6]
[345731933,1734438634085,-773.59,0.00025205,6]
[345731934,1734438634094,-500.0,0.00025205,6]
[345731935,1734438634105,-500.0,0.00025205,6]
[345731936,1734438634115,-500.0,0.00025205,6]
[345731937,1734438634124,-600.55066916,0.00025205,6]
[345731938,1734438634134,-500.0,0.00025205,2]
[345731939,1734438634144,-839.13,0.00025205,6]
[345731940,1734438634153,-500.0,0.00025205,6]
[345731941,1734438634163,-500.0,0.00025205,6]
[345731942,1734438634173,-3735.21,0.00025205,2]
[345731943,1734438634183,-500.0,0.00025205,6]
[345731944,1734438634192,-500.0,0.00025205,6]
[345731945,1734438634202,-500.0,0.00025205,6]
[345731946,1734438634215,-500.0,0.00025217,2]
[345731947,1734438634225,-500.51642077,0.00025238,2]
[345731948,1734438634234,-606.51858995,0.00025241,2]
[345731949,1734438634244,-500.0,0.00025241,2]
[345731950,1734438634254,-500.0,0.00025241,2]
[345731951,1734438634264,-273.0346183,0.00025267,2]
[345731952,1734438634274,-500.0,0.00025267,2]
[345731953,1734438634284,-404.525,0.00025378,21]
[345731954,1734438634293,-500.0,0.00025378,2]
[345731955,1734438634304,-624.20020305,0.0002544,2]
[345731956,1734438634314,-500.0,0.00025479,6]
[345731957,1734438634324,-1048.96,0.00025479,2]
[345731958,1734438634333,-500.0,0.00025479,6]
[345731959,1734438634343,-500.0,0.00025479,6]
[345731960,1734438634356,-500.0,0.00025479,6]
[345731961,1734438634365,-500.0,0.00025479,6]
[345731962,1734438634375,-500.0,0.00025479,6]
[345731963,1734438634385,-500.0,0.00025479,6]
[345731964,1734438634395,-500.0,0.00025479,6]
[345731965,1734438634405,-500.0,0.00025479,6]
[345731966,1734438634415,-500.0,0.00025479,6]
[345731967,1734438634424,-1306.5,0.00025479,6]
[345731968,1734438634434,-1513.95,0.00025479,6]
[345731969,1734438634443,-2201.44,0.00025479,6]
[345731970,1734438634453,-7047.16,0.00025479,6]
[345731971,1734438634462,-500.0,0.00025479,6]
[345731972,1734438634472,-500.0,0.00025479,6]
[345731973,1734438634482,-500.0,0.00025479,6]
[345731974,1734438634492,-500.0,0.00025479,6]
[345731975,1734438634501,-1642.94,0.00025479,5]
[345731976,1734438634510,-500.0,0.00025479,6]
[345731977,1734438634520,-500.0,0.00025479,6]
[345731978,1734438634530,-500.0,0.00025479,6]
[345731979,1734438634539,-500.0,0.00025479,6]
[345731980,1734438634549,-500.0,0.00025479,6]
[345731981,1734438634559,-500.0,0.00025479,6]
[345731982,1734438634568,-500.0,0.00025479,6]
[345731983,1734438634578,-500.0,0.00025479,6]
[345731984,1734438634588,-773.59,0.00025479,6]
[345731985,1734438634597,-500.0,0.00025479,6]
[345731986,1734438634610,-500.0,0.00025479,6]
[345731987,1734438634620,-500.0,0.00025479,2]
[345731988,1734438634629,-839.13,0.00025479,6]
[345731989,1734438634639,-500.0,0.00025479,6]
[345731990,1734438634649,-500.0,0.00025479,6]
[345731991,1734438634658,-3735.21,0.00025479,2]
[345731992,1734438634668,-500.0,0.00025479,6]
[345731993,1734438634678,-500.0,0.00025479,6]
[345731994,1734438634687,-500.0,0.00025479,6]
[345731995,1734438634698,-420.0,0.00025527,2]
[345731996,1734438634707,-533.0,0.00025527,2]
[345731997,1734438634717,-2154.0,0.00025527,2]
[345731998,1734438634726,-2367.0,0.00025527,2]
[345731999,1734438634735,-500.0,0.00025753,6]
[345732000,1734438634745,-1048.96,0.00025753,2]
[345732001,1734438634755,-500.0,0.00025753,6]
[345732002,1734438634764,-456.0523713,0.00025753,6]
[345732003,1734438634774,-500.0,0.00025753,6]
[345732004,1734438634783,-367.3581887,0.00025753,6]
[345732005,1734438634792,-500.0,0.00025753,6]
[345732006,1734438634801,-500.0,0.00025753,6]
[345732007,1734438634811,-500.0,0.00025753,6]
[345732008,1734438634820,-500.0,0.00025753,6]
[345732009,1734438634830,-500.0,0.00025753,6]
[345732010,1734438634839,-1306.5,0.00025753,6]
[345732011,1734438634853,-1513.95,0.00025753,6]
[345732012,1734438634863,-2201.44,0.00025753,6]
[345732013,1734438634872,-7047.16,0.00025753,6]
[345732014,1734438634881,-500.0,0.00025753,6]
[345732015,1734438634891,-500.0,0.00025753,6]
[345732016,1734438634900,-500.0,0.00025753,6]
[345732017,1734438634910,-357.54586137,0.00025753,6]
[345732018,1734438634919,-1642.94,0.00025753,5]
[345732019,1734438634929,-500.0,0.00025753,6]
[345732020,1734438634939,-500.0,0.00025753,6]
[345732021,1734438634948,-311.97093577,0.00025753,6]
[345732022,1734438634958,-500.0,0.00025753,6]
[345732023,1734438634967,-500.0,0.00025753,6]
[345732024,1734438634977,-500.0,0.00025753,6]
[345732025,1734438634987,-500.0,0.00025753,6]
[345732026,1734438634999,-500.0,0.00025753,6]
[345732027,1734438635008,-773.59,0.00025753,6]
[345732028,1734438635018,-500.0,0.00025753,6]
[345732029,1734438635028,-500.0,0.00025753,6]
[345732030,1734438635040,-500.0,0.00025753,2]
[345732031,1734438635050,-839.13,0.00025753,6]
[345732032,1734438635059,-500.0,0.00025753,6]
[345732033,1734438635069,-500.0,0.00025753,6]
[345732034,1734438635081,-3735.21,0.00025753,2]
[345732035,1734438635090,-500.0,0.00025753,6]
[345732036,1734438635102,-500.0,0.00025753,6]
[345732037,1734438635111,-500.0,0.00025753,6]
[345732038,1734438635121,-400.0,0.00025753,2]
[345732039,1734438635130,-1000.0,0.00025789,2]
[345732040,1734438635139,-156.0,0.0002589,2]
[345732041,1734438635149,-28682.42103349,0.00026,5]
[345732042,1734438635158,-162443.49021036,0.00026,20]
[345732043,1734438635167,-11061.50753899,0.00026,30]
[345732044,1734438635177,-1371.37015412,0.00026,2]
[345732045,1734438635187,-1022.1394213,0.00026,30]
[345732046,1734438635198,-16261.42427165,0.00026,2]
[345732047,1734438635207,-4379.03381353,0.00026,7]
[345732048,1734438635216,-500.0,0.00026027,6]
[345732049,1734438635225,-1048.96,0.00026027,2]
[345732050,1734438635234,-500.0,0.00026027,6]
[345732051,1734438635244,-500.0,0.00026027,6]
[345732052,1734438635253,-500.0,0.00026027,6]
[345732053,1734438635262,-500.0,0.00026027,6]